[Event "Live Chess"]
[Site "Chess.com"]
[Date "2023.05.21"]
[Round "-"]
[White "chessfiction"]
[Black "Dhaydon19"]
[Result "0-1"]
[WhiteElo "2311"]
[BlackElo "2701"]
[TimeControl "300"]
[EndTime "4:31:06 PDT"]
[Termination "Dhaydon19 won by resignation"]

1. e4 {[%clk 0:04:57.3]} 1... c6 {[%clk 0:04:59.9]} 2. d4 {[%clk 0:04:56.2]}
2... d5 {[%clk 0:04:59.2]} 3. e5 {[%clk 0:04:55.9]} 3... c5 {[%clk 0:04:57.2]}
4. c3 {[%clk 0:04:54.4]} 4... cxd4 {[%clk 0:04:56.1]} 5. cxd4 {[%clk 0:04:54.3]}
5... e6 {[%clk 0:04:55.5]} 6. Nf3 {[%clk 0:04:53]} 6... Nc6 {[%clk 0:04:54.7]}
7. Bd3 {[%clk 0:04:52.4]} 7... Nge7 {[%clk 0:04:51.7]} 8. O-O {[%clk 0:04:51.4]}
8... Nf5 {[%clk 0:04:50.7]} 9. Bxf5 {[%clk 0:04:50.2]} 9... exf5 {[%clk
0:04:50.3]} 10. Nc3 {[%clk 0:04:49.4]} 10... Be7 {[%clk 0:04:49.2]} 11. a3
{[%clk 0:04:44.9]} 11... Be6 {[%clk 0:04:48.1]} 12. b4 {[%clk 0:04:43.7]} 12...
Rc8 {[%clk 0:04:46.5]} 13. Ne2 {[%clk 0:04:37.7]} 13... O-O {[%clk 0:04:44.3]}
14. Nf4 {[%clk 0:04:36.5]} 14... Qd7 {[%clk 0:04:41.1]} 15. Nd3 {[%clk
0:04:32.6]} 15... b6 {[%clk 0:04:39.1]} 16. Bg5 {[%clk 0:04:27.9]} 16... h6
{[%clk 0:04:36]} 17. Bxe7 {[%clk 0:04:26.3]} 17... Nxe7 {[%clk 0:04:35.2]} 18.
Qd2 {[%clk 0:04:24]} 18... Rc4 {[%clk 0:04:33.6]} 19. Nf4 {[%clk 0:04:12.2]}
19... Rfc8 {[%clk 0:04:31.8]} 20. Rac1 {[%clk 0:04:08.8]} 20... Ng6 {[%clk
0:04:27.9]} 21. Nxg6 {[%clk 0:04:04.3]} 21... fxg6 {[%clk 0:04:26.7]} 22. h4
{[%clk 0:04:00.7]} 22... Qc6 {[%clk 0:04:23.2]} 23. Rxc4 {[%clk 0:03:46.1]}
23... dxc4 {[%clk 0:04:21.4]} 24. Qf4 {[%clk 0:03:46]} 24... c3 {[%clk
0:04:18.6]} 25. Rc1 {[%clk 0:03:37.2]} 25... Qe4 {[%clk 0:04:14.8]} 26. g3
{[%clk 0:03:27.9]} 26... Bd5 {[%clk 0:04:06.9]} 27. Qxe4 {[%clk 0:03:15.6]}
27... Bxe4 {[%clk 0:04:05.4]} 28. Ne1 {[%clk 0:03:06]} 28... Rc4 {[%clk
0:03:59.2]} 29. Nc2 {[%clk 0:03:04.2]} 29... Kf7 {[%clk 0:03:56.6]} 30. Ne3
{[%clk 0:02:55.2]} 30... Rxd4 {[%clk 0:03:55.4]} 31. Rxc3 {[%clk 0:02:53.5]}
31... Ke6 {[%clk 0:03:51.4]} 32. f4 {[%clk 0:02:50.1]} 32... g5 {[%clk
0:03:48.6]} 33. hxg5 {[%clk 0:02:48.6]} 33... hxg5 {[%clk 0:03:47.6]} 34. Rc7
{[%clk 0:02:44.3]} 34... gxf4 {[%clk 0:03:42.5]} 35. gxf4 {[%clk 0:02:42.6]}
35... Rd3 {[%clk 0:03:41.4]} 36. Kf2 {[%clk 0:02:39.8]} 36... Rxa3 {[%clk
0:03:35.2]} 37. Rxg7 {[%clk 0:02:38.1]} 37... Ra2+ {[%clk 0:03:28.5]} 38. Ke1
{[%clk 0:02:28.2]} 38... Ra3 {[%clk 0:03:23.9]} 39. Nc4 {[%clk 0:02:21.7]} 39...
Rf3 {[%clk 0:03:19.2]} 40. Rxa7 {[%clk 0:02:20]} 40... b5 {[%clk 0:03:14.5]} 41.
Ra6+ {[%clk 0:02:05.8]} 41... Kd5 {[%clk 0:03:12.1]} 42. Nd2 {[%clk 0:02:03.1]}
42... Rxf4 {[%clk 0:03:07.9]} 43. e6 {[%clk 0:01:59.2]} 43... Rh4 {[%clk
0:03:05.9]} 44. Rb6 {[%clk 0:01:51.9]} 44... Bd3 {[%clk 0:03:04.4]} 45. e7
{[%clk 0:01:46.4]} 45... Rh8 {[%clk 0:03:02.1]} 46. Kf2 {[%clk 0:01:41.4]} 46...
f4 {[%clk 0:02:59.3]} 47. Kf3 {[%clk 0:01:35.2]} 47... Re8 {[%clk 0:02:57.7]}
48. Kxf4 {[%clk 0:01:32.3]} 48... Rxe7 {[%clk 0:02:56.9]} 49. Rf6 {[%clk
0:01:11.6]} 49... Kd4 {[%clk 0:02:52.4]} 50. Nf3+ {[%clk 0:01:08.8]} 50... Kc3
{[%clk 0:02:51.3]} 51. Ne5 {[%clk 0:01:03.6]} 51... Be2 {[%clk 0:02:50]} 52. Rh6
{[%clk 0:00:49.9]} 52... Re8 {[%clk 0:02:45.8]} 53. Rh3+ {[%clk 0:00:48.9]}
53... Kxb4 {[%clk 0:02:42.8]} 54. Nc6+ {[%clk 0:00:47.4]} 54... Kc5 {[%clk
0:02:39.6]} 55. Rc3+ {[%clk 0:00:46.6]} 55... Kb6 {[%clk 0:02:38]} 56. Nd4
{[%clk 0:00:45.7]} 56... Bc4 {[%clk 0:02:36.6]} 57. Nf5 {[%clk 0:00:43.9]} 57...
Kc5 {[%clk 0:02:34]} 58. Ne3 {[%clk 0:00:42.6]} 58... Rf8+ {[%clk 0:02:33.4]}
59. Ke4 {[%clk 0:00:41.7]} 59... Re8+ {[%clk 0:02:32]} 60. Kf4 {[%clk
0:00:41.1]} 60... Kd4 {[%clk 0:02:31.1]} 61. Rc1 {[%clk 0:00:40.3]} 61... Rxe3
{[%clk 0:02:29.5]} 0-1

[Event "Live Chess"]
[Site "Chess.com"]
[Date "2023.05.21"]
[Round "-"]
[White "Sweet-O"]
[Black "MarkLim1"]
[Result "1/2-1/2"]
[WhiteElo "1429"]
[BlackElo "1684"]
[TimeControl "300"]
[EndTime "4:31:12 PDT"]
[Termination "Game drawn by repetition"]

1. d4 {[%clk 0:04:58.5]} 1... Nf6 {[%clk 0:04:59.2]} 2. Nc3 {[%clk 0:04:58.4]}
2... d5 {[%clk 0:04:58.2]} 3. Bf4 {[%clk 0:04:58]} 3... e6 {[%clk 0:04:57.2]} 4.
e3 {[%clk 0:04:57.5]} 4... Bb4 {[%clk 0:04:56.3]} 5. Ne2 {[%clk 0:04:55.9]} 5...
O-O {[%clk 0:04:55]} 6. f3 {[%clk 0:04:54.5]} 6... c5 {[%clk 0:04:54]} 7. g4
{[%clk 0:04:52.4]} 7... cxd4 {[%clk 0:04:52.9]} 8. Qxd4 {[%clk 0:04:49.4]} 8...
Nc6 {[%clk 0:04:51.6]} 9. Qd2 {[%clk 0:04:47.6]} 9... b6 {[%clk 0:04:48.1]} 10.
a3 {[%clk 0:04:46.4]} 10... Bd6 {[%clk 0:04:46.8]} 11. O-O-O {[%clk 0:04:43.2]}
11... Ba6 {[%clk 0:04:45.4]} 12. h4 {[%clk 0:04:39.8]} 12... Rc8 {[%clk
0:04:44]} 13. h5 {[%clk 0:04:36.4]} 13... Qe7 {[%clk 0:04:42.2]} 14. g5 {[%clk
0:04:35.5]} 14... Nd7 {[%clk 0:04:40.3]} 15. g6 {[%clk 0:04:30.7]} 15... fxg6
{[%clk 0:04:39.1]} 16. hxg6 {[%clk 0:04:26.6]} 16... Bxa3 {[%clk 0:04:34.2]} 17.
Rxh7 {[%clk 0:04:15.6]} 17... Bxb2+ {[%clk 0:04:30.6]} 18. Kxb2 {[%clk
0:04:09.9]} 18... Qb4+ {[%clk 0:04:29.6]} 19. Kc1 {[%clk 0:04:08.7]} 19... Qa3+
{[%clk 0:04:26.2]} 20. Kb1 {[%clk 0:04:07.4]} 20... Qb4+ {[%clk 0:04:25.5]} 21.
Kc1 {[%clk 0:04:05.7]} 21... Qa3+ {[%clk 0:04:24.6]} 22. Kb1 {[%clk 0:04:04.7]}
22... Qb4+ {[%clk 0:04:15.7]} 23. Kc1 {[%clk 0:04:00.9]} 1/2-1/2

[Event "Live Chess"]
[Site "Chess.com"]
[Date "2023.05.21"]
[Round "-"]
[White "DoYouLikeCurry"]
[Black "Nazar_777"]
[Result "1-0"]
[WhiteElo "1426"]
[BlackElo "1557"]
[TimeControl "300"]
[EndTime "4:31:21 PDT"]
[Termination "DoYouLikeCurry won by checkmate"]

1. e4 {[%clk 0:04:57.3]} 1... e6 {[%clk 0:04:58.6]} 2. d4 {[%clk 0:04:56.1]}
2... a6 {[%clk 0:04:57.2]} 3. f4 {[%clk 0:04:50.8]} 3... h5 {[%clk 0:04:39.8]}
4. Nf3 {[%clk 0:04:47.1]} 4... c5 {[%clk 0:04:35.1]} 5. c3 {[%clk 0:04:43.2]}
5... cxd4 {[%clk 0:03:55.4]} 6. cxd4 {[%clk 0:04:40.7]} 6... Nc6 {[%clk
0:03:52.9]} 7. Nc3 {[%clk 0:04:37]} 7... Nf6 {[%clk 0:03:51.3]} 8. e5 {[%clk
0:04:35.1]} 8... Ng8 {[%clk 0:03:32.1]} 9. Be2 {[%clk 0:04:28.1]} 9... Nh6
{[%clk 0:03:30]} 10. O-O {[%clk 0:04:23.8]} 10... Qc7 {[%clk 0:03:27.4]} 11. Qc2
{[%clk 0:04:03.3]} 11... Ng4 {[%clk 0:03:24.3]} 12. h3 {[%clk 0:03:57.6]} 12...
Nh6 {[%clk 0:03:21.6]} 13. Be3 {[%clk 0:03:41.8]} 13... Nf5 {[%clk 0:03:19]} 14.
Bf2 {[%clk 0:03:34.5]} 14... b5 {[%clk 0:03:17.3]} 15. a3 {[%clk 0:03:30.2]}
15... h4 {[%clk 0:03:13.4]} 16. Kh2 {[%clk 0:03:23.1]} 16... Ng3 {[%clk
0:03:09.6]} 17. Bxg3 {[%clk 0:03:21.9]} 17... hxg3+ {[%clk 0:03:08.3]} 18. Kxg3
{[%clk 0:03:21.4]} 18... Be7 {[%clk 0:03:05.6]} 19. Kh2 {[%clk 0:03:21]} 19...
Bb7 {[%clk 0:03:04.4]} 20. Rad1 {[%clk 0:03:18.1]} 20... Na5 {[%clk 0:02:59.2]}
21. f5 {[%clk 0:03:15.6]} 21... Nc4 {[%clk 0:02:57.2]} 22. fxe6 {[%clk
0:03:13.4]} 22... dxe6 {[%clk 0:02:55.2]} 23. Qc1 {[%clk 0:02:57.3]} 23... Qc6
{[%clk 0:02:53.1]} 24. Rf2 {[%clk 0:02:24.6]} 24... g5 {[%clk 0:02:51]} 25. Nxg5
{[%clk 0:02:21]} 25... Kd7 {[%clk 0:02:25.3]} 26. Nxf7 {[%clk 0:02:15.9]} 26...
Rhg8 {[%clk 0:02:22.7]} 27. Rg1 {[%clk 0:02:14.6]} 27... Rg7 {[%clk 0:02:20.8]}
28. Nh6 {[%clk 0:02:06]} 28... Rg6 {[%clk 0:02:17.6]} 29. Ng4 {[%clk 0:02:03.7]}
29... Rag8 {[%clk 0:02:15.1]} 30. Bf3 {[%clk 0:01:50.9]} 30... Qb6 {[%clk
0:02:09.7]} 31. Bxb7 {[%clk 0:01:48.7]} 31... Qxb7 {[%clk 0:02:07.3]} 32. Qb1
{[%clk 0:01:41.2]} 32... Rg5 {[%clk 0:02:00]} 33. Qe4 {[%clk 0:01:38.6]} 33...
Qxe4 {[%clk 0:01:56.5]} 34. Nxe4 {[%clk 0:01:37.3]} 34... R5g7 {[%clk 0:01:54]}
35. Nef6+ {[%clk 0:01:31.1]} 35... Bxf6 {[%clk 0:01:52.3]} 36. Nxf6+ {[%clk
0:01:30.1]} 36... Kc6 {[%clk 0:01:51.2]} 37. Nxg8 {[%clk 0:01:29.3]} 37... Rxg8
{[%clk 0:01:49.9]} 38. Rf6 {[%clk 0:01:28.1]} 38... Kd5 {[%clk 0:01:48.7]} 39.
b3 {[%clk 0:01:16.1]} 39... Ne3 {[%clk 0:01:46.4]} 40. Re1 {[%clk 0:01:08.9]}
40... Nf5 {[%clk 0:01:44.3]} 41. g4 {[%clk 0:01:03.5]} 41... Nh4 {[%clk
0:01:41.7]} 42. Rd1 {[%clk 0:00:56.1]} 42... a5 {[%clk 0:01:29]} 43. Rf7 {[%clk
0:00:53.5]} 43... Rc8 {[%clk 0:01:18.5]} 44. Rd7+ {[%clk 0:00:52.4]} 44... Ke4
{[%clk 0:01:15.6]} 45. d5 {[%clk 0:00:48]} 45... exd5 {[%clk 0:00:59]} 46. R1xd5
{[%clk 0:00:44.8]} 46... Nf3+ {[%clk 0:00:53.7]} 47. Kg3 {[%clk 0:00:41.3]}
47... Rh8 {[%clk 0:00:47.2]} 48. e6 {[%clk 0:00:28.8]} 48... Ng5 {[%clk
0:00:43.7]} 49. Rxg5 {[%clk 0:00:27.2]} 49... Rf8 {[%clk 0:00:41]} 50. Rf5
{[%clk 0:00:23.8]} 50... Re8 {[%clk 0:00:38.2]} 51. e7 {[%clk 0:00:19.5]} 51...
b4 {[%clk 0:00:36.4]} 52. a4 {[%clk 0:00:18.2]} 52... Ke3 {[%clk 0:00:34.2]} 53.
Re5# {[%clk 0:00:16.8]} 1-0

[Event "Live Chess"]
[Site "Chess.com"]
[Date "2023.05.21"]
[Round "-"]
[White "Tushinskiy"]
[Black "ossie57"]
[Result "1-0"]
[WhiteElo "2210"]
[BlackElo "1929"]
[TimeControl "300"]
[EndTime "4:31:26 PDT"]
[Termination "Tushinskiy won on time"]

1. d4 {[%clk 0:04:57.5]} 1... Nf6 {[%clk 0:04:57.6]} 2. c3 {[%clk 0:04:57.4]}
2... g6 {[%clk 0:04:56.7]} 3. Nf3 {[%clk 0:04:57.2]} 3... Bg7 {[%clk 0:04:56.2]}
4. Bf4 {[%clk 0:04:57.1]} 4... d6 {[%clk 0:04:38.4]} 5. Nbd2 {[%clk 0:04:55.7]}
5... Bg4 {[%clk 0:04:36.8]} 6. Qb3 {[%clk 0:04:53.1]} 6... b6 {[%clk 0:04:27]}
7. e4 {[%clk 0:04:49.2]} 7... Bxf3 {[%clk 0:04:22.7]} 8. gxf3 {[%clk 0:04:48]}
8... O-O {[%clk 0:04:22]} 9. Bg3 {[%clk 0:04:41.5]} 9... Nh5 {[%clk 0:04:14.1]}
10. Bd3 {[%clk 0:04:36.5]} 10... c5 {[%clk 0:04:07.3]} 11. d5 {[%clk 0:04:31.6]}
11... Nd7 {[%clk 0:04:01.5]} 12. a4 {[%clk 0:04:28.7]} 12... a6 {[%clk
0:03:53.5]} 13. O-O {[%clk 0:04:21.5]} 13... Ne5 {[%clk 0:03:52.7]} 14. Be2
{[%clk 0:04:15.8]} 14... g5 {[%clk 0:03:24]} 15. Nc4 {[%clk 0:04:01.8]} 15...
Nf4 {[%clk 0:03:10.2]} 16. Bxf4 {[%clk 0:03:59.2]} 16... gxf4 {[%clk 0:03:07.7]}
17. Nxe5 {[%clk 0:03:57.9]} 17... Bxe5 {[%clk 0:03:04.3]} 18. Kh1 {[%clk
0:03:55.7]} 18... Kh8 {[%clk 0:03:03.2]} 19. Rg1 {[%clk 0:03:47.1]} 19... Qd7
{[%clk 0:02:57.2]} 20. Rg4 {[%clk 0:03:25.5]} 20... f5 {[%clk 0:02:49.2]} 21.
exf5 {[%clk 0:03:22.6]} 21... Qxf5 {[%clk 0:02:48.2]} 22. Rag1 {[%clk
0:03:18.4]} 22... Qh5 {[%clk 0:02:26.1]} 23. Bd3 {[%clk 0:03:14.6]} 23... Qh3
{[%clk 0:02:17.3]} 24. Be4 {[%clk 0:03:11.6]} 24... Rf6 {[%clk 0:02:10.3]} 25.
Qxb6 {[%clk 0:03:03.3]} 25... Rh6 {[%clk 0:02:05.2]} 26. R1g2 {[%clk 0:03:02]}
26... Rh4 {[%clk 0:01:48.7]} 27. Qb7 {[%clk 0:02:27]} 27... Re8 {[%clk
0:01:19.9]} 28. Qd7 {[%clk 0:02:22.5]} 28... Rb8 {[%clk 0:01:16.5]} 29. Qxe7
{[%clk 0:02:18.8]} 29... Rxg4 {[%clk 0:01:10]} 30. Rxg4 {[%clk 0:02:15.9]} 30...
Rg8 {[%clk 0:00:40.4]} 31. Rg1 {[%clk 0:01:42.1]} 31... Rxg1+ {[%clk 0:00:30.7]}
32. Kxg1 {[%clk 0:01:42]} 32... Qh6 {[%clk 0:00:24.4]} 33. Kf1 {[%clk
0:01:38.1]} 33... Qg7 {[%clk 0:00:13]} 34. Qe8+ {[%clk 0:01:34.7]} 34... Qg8
{[%clk 0:00:11.7]} 35. Qd7 {[%clk 0:01:32.7]} 35... Qg7 {[%clk 0:00:10.7]} 36.
Qc8+ {[%clk 0:01:31.4]} 36... Qg8 {[%clk 0:00:10.1]} 37. Qxa6 {[%clk 0:01:30.4]}
37... Qd8 {[%clk 0:00:08.1]} 38. Qb7 {[%clk 0:01:29]} 38... Qg8 {[%clk
0:00:00.2]} 39. a5 {[%clk 0:01:26.9]} 1-0

[Event "Live Chess"]
[Site "Chess.com"]
[Date "2023.05.21"]
[Round "-"]
[White "LL220284LL"]
[Black "JoRoSaR"]
[Result "1-0"]
[WhiteElo "2327"]
[BlackElo "1700"]
[TimeControl "300"]
[EndTime "4:31:33 PDT"]
[Termination "LL220284LL won by checkmate"]

1. c4 {[%clk 0:04:59.2]} 1... f5 {[%clk 0:04:58.9]} 2. b3 {[%clk 0:04:57.8]}
2... e5 {[%clk 0:04:58.4]} 3. Bb2 {[%clk 0:04:56.8]} 3... d6 {[%clk 0:04:57.5]}
4. d4 {[%clk 0:04:55.6]} 4... e4 {[%clk 0:04:56.3]} 5. d5 {[%clk 0:04:53.4]}
5... Nf6 {[%clk 0:04:55.8]} 6. e3 {[%clk 0:04:52.6]} 6... Be7 {[%clk 0:04:50.6]}
7. Nc3 {[%clk 0:04:50.8]} 7... O-O {[%clk 0:04:42.9]} 8. Nge2 {[%clk 0:04:50.5]}
8... b6 {[%clk 0:04:38.2]} 9. Nd4 {[%clk 0:04:49.8]} 9... Bb7 {[%clk 0:04:37.7]}
10. Nxf5 {[%clk 0:04:48.2]} 10... Qd7 {[%clk 0:04:36.6]} 11. Nxe7+ {[%clk
0:04:45.8]} 11... Qxe7 {[%clk 0:04:36.3]} 12. Be2 {[%clk 0:04:44.9]} 12... Nbd7
{[%clk 0:04:34.8]} 13. Nb5 {[%clk 0:04:42.5]} 13... Ne5 {[%clk 0:04:32.9]} 14.
Nd4 {[%clk 0:04:41.5]} 14... Bc8 {[%clk 0:04:30.3]} 15. h3 {[%clk 0:04:39.5]}
15... Qf7 {[%clk 0:04:25.5]} 16. Qc2 {[%clk 0:04:34.2]} 16... Nxd5 {[%clk
0:04:22.2]} 17. cxd5 {[%clk 0:04:27.5]} 17... Qxf2+ {[%clk 0:04:17.3]} 18. Kd2
{[%clk 0:04:27]} 18... Qxg2 {[%clk 0:04:13.5]} 19. Rag1 {[%clk 0:04:25.3]} 19...
Qf2 {[%clk 0:04:05.7]} 20. Rf1 {[%clk 0:04:23.4]} 20... Qg2 {[%clk 0:04:04.8]}
21. Rxf8+ {[%clk 0:04:22.4]} 21... Kxf8 {[%clk 0:04:03]} 22. Rf1+ {[%clk
0:04:21.8]} 22... Kg8 {[%clk 0:04:02]} 23. Qxc7 {[%clk 0:04:19.5]} 23... Bxh3
{[%clk 0:04:00.8]} 24. Ne6 {[%clk 0:04:05.4]} 24... Nf3+ {[%clk 0:03:53.8]} 25.
Kd1 {[%clk 0:04:03.5]} 25... Qh2 {[%clk 0:03:38.9]} 26. Qxg7# {[%clk 0:03:59.9]}
1-0

[Event "Live Chess"]
[Site "Chess.com"]
[Date "2023.05.21"]
[Round "-"]
[White "Twickenham2014"]
[Black "Crowded_House"]
[Result "1-0"]
[WhiteElo "2284"]
[BlackElo "1651"]
[TimeControl "300"]
[EndTime "4:31:49 PDT"]
[Termination "Twickenham2014 won by resignation"]

1. e4 {[%clk 0:04:57.8]} 1... e6 {[%clk 0:04:58.6]} 2. b3 {[%clk 0:04:55.6]}
2... d5 {[%clk 0:04:58]} 3. Bb2 {[%clk 0:04:55.5]} 3... dxe4 {[%clk 0:04:54.5]}
4. Nc3 {[%clk 0:04:51.8]} 4... Nf6 {[%clk 0:04:51.5]} 5. Qe2 {[%clk 0:04:50.1]}
5... Be7 {[%clk 0:04:46.6]} 6. Nxe4 {[%clk 0:04:42.6]} 6... O-O {[%clk
0:04:41.4]} 7. O-O-O {[%clk 0:04:36.4]} 7... Nxe4 {[%clk 0:04:40.1]} 8. Qxe4
{[%clk 0:04:36.3]} 8... Bf6 {[%clk 0:04:39.3]} 9. d4 {[%clk 0:04:35.9]} 9... Qd5
{[%clk 0:04:35]} 10. Bd3 {[%clk 0:04:32.3]} 10... Qxe4 {[%clk 0:04:32.7]} 11.
Bxe4 {[%clk 0:04:32.2]} 11... c6 {[%clk 0:04:28.3]} 12. Nf3 {[%clk 0:04:19.1]}
12... Nd7 {[%clk 0:04:25.8]} 13. h4 {[%clk 0:04:17]} 13... Rb8 {[%clk
0:04:10.9]} 14. g4 {[%clk 0:04:12.9]} 14... Be7 {[%clk 0:03:46.2]} 15. g5 {[%clk
0:04:10.2]} 15... g6 {[%clk 0:03:44.9]} 16. Ne5 {[%clk 0:03:51.5]} 16... Nxe5
{[%clk 0:03:42.4]} 17. dxe5 {[%clk 0:03:51.4]} 17... Bc5 {[%clk 0:03:25.7]} 18.
f4 {[%clk 0:03:47]} 18... Be3+ {[%clk 0:03:22.5]} 19. Kb1 {[%clk 0:03:46.4]}
19... Bxf4 {[%clk 0:03:21.6]} 20. Rh3 {[%clk 0:03:45.3]} 20... Bxe5 {[%clk
0:03:18.2]} 21. Bxe5 {[%clk 0:03:44]} 21... Ra8 {[%clk 0:03:14.7]} 22. Rhd3
{[%clk 0:03:34.9]} 1-0

[Event "Live Chess"]
[Site "Chess.com"]
[Date "2023.05.21"]
[Round "-"]
[White "JohanKjeldahl"]
[Black "Abde2012"]
[Result "1-0"]
[WhiteElo "1886"]
[BlackElo "752"]
[TimeControl "300"]
[EndTime "4:31:51 PDT"]
[Termination "JohanKjeldahl won by resignation"]

1. e4 {[%clk 0:04:57]} 1... c6 {[%clk 0:04:58.9]} 2. d4 {[%clk 0:04:52.7]} 2...
d5 {[%clk 0:04:58.2]} 3. Nc3 {[%clk 0:04:51.3]} 3... Nf6 {[%clk 0:04:51.4]} 4.
e5 {[%clk 0:04:49.3]} 4... Ne4 {[%clk 0:04:50.2]} 5. Bd3 {[%clk 0:04:48.1]} 5...
Nxc3 {[%clk 0:04:48.1]} 6. bxc3 {[%clk 0:04:46.7]} 6... Be6 {[%clk 0:04:43.6]}
7. f4 {[%clk 0:04:45.2]} 7... g6 {[%clk 0:04:42.1]} 8. Nf3 {[%clk 0:04:43.2]}
8... Bg7 {[%clk 0:04:41.4]} 9. O-O {[%clk 0:04:40.7]} 9... Nd7 {[%clk
0:04:40.9]} 10. Ng5 {[%clk 0:04:32.2]} 10... O-O {[%clk 0:04:37.7]} 11. Nxe6
{[%clk 0:04:30.8]} 11... fxe6 {[%clk 0:04:36.6]} 12. Qg4 {[%clk 0:04:29.4]}
12... Qa5 {[%clk 0:04:19.2]} 13. Qxe6+ {[%clk 0:04:26.8]} 13... Rf7 {[%clk
0:04:17.2]} 14. Qxd7 {[%clk 0:04:23.2]} 14... Qxc3 {[%clk 0:04:15.3]} 15. Be3
{[%clk 0:04:20]} 1-0

[Event "Live Chess"]
[Site "Chess.com"]
[Date "2023.05.21"]
[Round "-"]
[White "LiamClery2020"]
[Black "WelshTiger"]
[Result "0-1"]
[WhiteElo "1999"]
[BlackElo "2313"]
[TimeControl "300"]
[EndTime "4:31:53 PDT"]
[Termination "WelshTiger won by resignation"]

1. e4 {[%clk 0:04:59.1]} 1... c5 {[%clk 0:04:55.2]} 2. Nf3 {[%clk 0:04:58.2]}
2... d6 {[%clk 0:04:54.8]} 3. Bb5+ {[%clk 0:04:54.7]} 3... Nd7 {[%clk
0:04:52.6]} 4. Bxd7+ {[%clk 0:04:54.2]} 4... Bxd7 {[%clk 0:04:51.7]} 5. O-O
{[%clk 0:04:54.1]} 5... g6 {[%clk 0:04:49.2]} 6. Re1 {[%clk 0:04:53.2]} 6... Bg7
{[%clk 0:04:48.4]} 7. h3 {[%clk 0:04:52.6]} 7... Nf6 {[%clk 0:04:47.1]} 8. c3
{[%clk 0:04:52.1]} 8... O-O {[%clk 0:04:44.6]} 9. d4 {[%clk 0:04:51.6]} 9... Qc7
{[%clk 0:04:38.8]} 10. Na3 {[%clk 0:04:47.2]} 10... a6 {[%clk 0:04:36.5]} 11.
Bf4 {[%clk 0:04:43.1]} 11... Ne8 {[%clk 0:04:33.5]} 12. e5 {[%clk 0:04:36.5]}
12... b5 {[%clk 0:03:53.5]} 13. d5 {[%clk 0:04:01.4]} 13... dxe5 {[%clk
0:03:25.5]} 14. Nxe5 {[%clk 0:03:59]} 14... Nd6 {[%clk 0:03:24.7]} 15. Qf3
{[%clk 0:03:54.2]} 15... Rae8 {[%clk 0:03:22.9]} 16. Rad1 {[%clk 0:03:35.1]}
16... Qc8 {[%clk 0:03:14.8]} 17. c4 {[%clk 0:03:24.2]} 17... b4 {[%clk
0:03:12.8]} 18. Nc2 {[%clk 0:03:21.9]} 18... Bxe5 {[%clk 0:03:06.5]} 19. Bxe5
{[%clk 0:03:21]} 19... Nxc4 {[%clk 0:03:05.3]} 20. Rc1 {[%clk 0:03:08.4]} 20...
Nxe5 {[%clk 0:03:02.3]} 21. Rxe5 {[%clk 0:03:08.3]} 21... Qb8 {[%clk 0:02:58.2]}
22. Re3 {[%clk 0:03:03.6]} 22... e6 {[%clk 0:02:57.1]} 23. dxe6 {[%clk
0:03:02.2]} 23... Bxe6 {[%clk 0:02:56.4]} 24. b3 {[%clk 0:03:00.8]} 24... a5
{[%clk 0:02:53.8]} 25. Rce1 {[%clk 0:02:59.3]} 25... a4 {[%clk 0:02:51.5]} 26.
bxa4 {[%clk 0:02:56.8]} 26... Bxa2 {[%clk 0:02:49.9]} 27. Qf6 {[%clk 0:02:54.2]}
27... b3 {[%clk 0:02:40]} 28. Na3 {[%clk 0:02:50.2]} 28... Rxe3 {[%clk
0:02:36.7]} 29. Rxe3 {[%clk 0:02:47.8]} 29... b2 {[%clk 0:02:35.9]} 30. a5
{[%clk 0:02:43.7]} 30... b1=Q+ {[%clk 0:02:19.3]} 31. Nxb1 {[%clk 0:02:42.3]}
31... Qxb1+ {[%clk 0:02:16.9]} 32. Kh2 {[%clk 0:02:42.2]} 32... Be6 {[%clk
0:02:13.6]} 33. Rxe6 {[%clk 0:02:37.7]} 33... fxe6 {[%clk 0:02:11.1]} 34. Qxe6+
{[%clk 0:02:37.6]} 34... Kg7 {[%clk 0:02:06.6]} 35. Qe5+ {[%clk 0:02:36.7]}
35... Kh6 {[%clk 0:01:57.4]} 36. Qe3+ {[%clk 0:02:32.3]} 36... g5 {[%clk
0:01:51.7]} 37. Qe6+ {[%clk 0:02:27.9]} 37... Qg6 {[%clk 0:01:50.5]} 0-1

[Event "Live Chess"]
[Site "Chess.com"]
[Date "2023.05.21"]
[Round "-"]
[White "miguelchuk"]
[Black "Chesscoach_Golichenko"]
[Result "0-1"]
[WhiteElo "1581"]
[BlackElo "2611"]
[TimeControl "300"]
[EndTime "4:32:10 PDT"]
[Termination "Chesscoach_Golichenko won on time"]

1. c4 {[%clk 0:04:57.2]} 1... Nf6 {[%clk 0:04:58.7]} 2. Nc3 {[%clk 0:04:55.6]}
2... e5 {[%clk 0:04:56.6]} 3. g3 {[%clk 0:04:54.3]} 3... d5 {[%clk 0:04:54.5]}
4. Bg2 {[%clk 0:04:51.5]} 4... d4 {[%clk 0:04:46.7]} 5. Nd5 {[%clk 0:04:43.5]}
5... c6 {[%clk 0:04:44.7]} 6. Nxf6+ {[%clk 0:04:39.6]} 6... Qxf6 {[%clk
0:04:41.8]} 7. d3 {[%clk 0:04:36.3]} 7... h5 {[%clk 0:04:37.4]} 8. Nf3 {[%clk
0:04:32.4]} 8... Bd6 {[%clk 0:04:33.9]} 9. Bg5 {[%clk 0:04:29.2]} 9... Qg6
{[%clk 0:04:30.1]} 10. Qd2 {[%clk 0:04:12.2]} 10... f6 {[%clk 0:04:21]} 11. Bh4
{[%clk 0:03:56.8]} 11... a5 {[%clk 0:04:16.3]} 12. O-O {[%clk 0:03:48.8]} 12...
Qf7 {[%clk 0:04:05.4]} 13. e3 {[%clk 0:03:35.6]} 13... g5 {[%clk 0:03:59.5]} 14.
Bxg5 {[%clk 0:03:31.3]} 14... fxg5 {[%clk 0:03:57.8]} 15. Nxg5 {[%clk
0:03:29.6]} 15... Qg6 {[%clk 0:03:53.3]} 16. Ne4 {[%clk 0:03:22.3]} 16... Be7
{[%clk 0:03:41.3]} 17. exd4 {[%clk 0:03:14.9]} 17... exd4 {[%clk 0:03:38.2]} 18.
Rae1 {[%clk 0:02:46.6]} 18... O-O {[%clk 0:03:25.2]} 19. a3 {[%clk 0:02:40.7]}
19... Bg4 {[%clk 0:03:17.9]} 20. f4 {[%clk 0:02:05.1]} 20... Nd7 {[%clk
0:03:04.7]} 21. h3 {[%clk 0:01:58.7]} 21... Bf5 {[%clk 0:03:00.8]} 22. Kh2
{[%clk 0:01:20.5]} 22... Kh8 {[%clk 0:02:38.9]} 23. Rg1 {[%clk 0:01:08.2]} 23...
b6 {[%clk 0:02:16.9]} 24. Nf2 {[%clk 0:00:42.2]} 24... Bd6 {[%clk 0:02:08.7]}
25. Ne4 {[%clk 0:00:32.8]} 25... Rg8 {[%clk 0:02:04]} 26. Nxd6 {[%clk 0:00:26]}
26... Qxd6 {[%clk 0:02:02.4]} 27. Bf3 {[%clk 0:00:19.5]} 27... Qh6 {[%clk
0:01:51.1]} 28. Qf2 {[%clk 0:00:13.9]} 28... Qf6 {[%clk 0:01:39.2]} 29. Bxh5
{[%clk 0:00:09.4]} 29... Bxd3 {[%clk 0:01:36.8]} 30. g4 {[%clk 0:00:06.6]} 30...
Raf8 {[%clk 0:01:33.5]} 31. f5 {[%clk 0:00:04.5]} 31... Bxc4 {[%clk 0:01:29.2]}
32. Qf4 {[%clk 0:00:01.1]} 32... Bd5 {[%clk 0:01:17.4]} 33. Bg6 {[%clk
0:00:00.4]} 33... Rxg6 {[%clk 0:01:15.4]} 0-1